lending/lending_fUSD_20241113
["ID","MTS","AMOUNT","RATE_DAILY","PERIOD"]
[342161679,1731518514792,-263.093,9.827e-05,2]
[342161680,1731518520645,-1960.677,9.827e-05,2]
[342161681,1731518528568,-206.9,0.00010959,2]
[342161682,1731518528601,-6565.061,0.000116,2]
[342161683,1731518528636,-250.0,0.00011602,2]
[342161684,1731518528666,-205.3,0.00011713,2]
[342161685,1731518528694,-150.0,0.00011744,2]
[342161686,1731518528724,-1000.0,0.00011745,2]
[342161687,1731518528754,-200.0,0.00011745,2]
[342161688,1731518528782,-23900.0,0.00011745,2]
[342161689,1731518528810,-250.0,0.00011745,2]
[342161690,1731518528838,-250.0,0.00011745,2]
[342161691,1731518528866,-1265.0,0.00011745,2]
[342161692,1731518528902,-189.86757784,0.00011867,2]
[342161693,1731518528936,-4470.20190729,0.00011874,2]
[342161694,1731518528964,-34381.5224,0.00011874,2]
[342161695,1731518528993,-1000.0,0.00011966,2]
[342161696,1731518529021,-5363.9402,0.00011967,2]
[342161697,1731518529049,-3797.41382974,0.00011967,2]
[342161698,1731518529063,-206.9,0.00011967,2]
[342161699,1731518529074,-6565.061,0.00011967,2]
[342161700,1731518529100,-250.0,0.00011967,2]
[342161701,1731518529112,-205.3,0.00011967,2]
[342161702,1731518529124,-150.0,0.00011967,2]
[342161703,1731518529150,-1000.0,0.00011967,2]
[342161704,1731518529162,-200.0,0.00011967,2]
[342161705,1731518529173,-23900.0,0.00011967,2]
[342161706,1731518529185,-250.0,0.00011967,2]
[342161707,1731518529199,-250.0,0.00011967,2]
[342161708,1731518529211,-1265.0,0.00011967,2]
[342161709,1731518529237,-189.86757784,0.00011967,2]
[342161710,1731518529249,-4470.20190729,0.00011967,2]
[342161711,1731518529266,-34381.5224,0.00011967,2]
[342161712,1731518529277,-1000.0,0.00011967,2]
[342161713,1731518529294,-5363.9402,0.00011967,2]
[342161714,1731518529306,-16554.79308513,0.00011967,2]
[342161715,1731518529316,-1000.0,0.00011967,2]
[342161716,1731518529325,-1255.0,0.00011974,2]
[342161717,1731518529335,-453.0,0.00011974,2]
[342161718,1731518529344,-628.0,0.00011974,2]
[342161719,1731518529354,-1992.0,0.00011974,2]
[342161720,1731518529363,-563.0,0.00011974,2]
[342161721,1731518529373,-150.0,0.00011974,2]
[342161722,1731518529387,-559.0,0.00011974,2]
[342161723,1731518529396,-1964.284,0.00011974,2]
[342161724,1731518529406,-1259.0,0.00011974,2]
[342161725,1731518529416,-814.0,0.00011974,2]
[342161726,1731518529425,-3745.0,0.00011974,2]
[342161727,1731518529435,-922.0,0.00011974,2]
[342161728,1731518529445,-3488.0,0.00011974,2]
[342161729,1731518529455,-6529.671,0.00011974,2]
[342161730,1731518529465,-1858.085,0.00011974,2]
[342161731,1731518529476,-150.0,0.00011974,2]
[342161732,1731518529485,-4470.20190728,0.00011988,2]
[342161733,1731518529497,-1450.0,0.00012,2]
[342161734,1731518529506,-500.0,0.00012056,2]
[342161735,1731518529516,-329.4052,0.00012056,2]
[342161736,1731518529526,-15759.7041,0.00012056,2]
[342161737,1731518529536,-669.1185,0.00012056,2]
[342161738,1731518529547,-2500.0,0.00012056,2]
[342161739,1731518529558,-7542.08,0.00012067,2]
[342161740,1731518529567,-2223.77,0.00012091,2]
[342161741,1731518529577,-4470.20190728,0.00012102,2]
[342161742,1731518529591,-4470.20190728,0.00012216,2]
[342161743,1731518529602,-4470.20190728,0.0001233,2]
[342161744,1731518529611,-192.26,0.00012333,2]
[342161745,1731518529621,-2520.92877,0.0001241,2]
[342161746,1731518529635,-4470.20190728,0.00012444,2]
[342161747,1731518529644,-76.89080847,0.00012548,2]
[342161748,1731518544855,500.0,0.00027,60]
[342161749,1731518561721,500.0,0.00027,60]
[342161750,1731518596063,1697.024482,0.00026431,120]
[342161751,1731518601103,500.0,0.00026431,120]
[342161752,1731518661949,807.34704419,0.000265,120]
[342161754,1731518720802,3289.50913737,9e-05,2]
[342161755,1731518737690,450.0,9e-05,2]
[342161756,1731518756231,1472.67705678,6.94e-05,2]
[342161773,1731518802263,2062.67,9.858e-05,2]
[342161775,1731518882046,1470.0,0.0001,2]
[342161776,1731518885188,8245.48216371,9.999e-05,2]
[342161777,1731518908713,58813.44686884,0.0001,2]
[342161780,1731518927181,467.35105188,0.000145,120]
[342161788,1731518975772,592.45,0.00016658,30]
[342161801,1731519032237,-300.0,9.999e-05,2]
[342161802,1731519032248,-74.21176419,9.999e-05,2]
[342161803,1731519032264,-75.78823581,9.999e-05,2]
[342161804,1731519032283,-21071.1145952,0.0001,2]
[342161807,1731519032355,-4192.6301014,0.0001,2]
[342161808,1731519032366,-567.89352,0.0001,2]
[342161809,1731519032377,-124669.16632369,0.0001,2]
[342161810,1731519032388,-9272.7248527,0.0001,2]
[342161811,1731519032467,-9877.4999999,0.0001,2]
[342161822,1731519038358,-8897.33288894,0.0001,2]
[342161826,1731519038446,-5009.4459205,0.0001,2]
[342161827,1731519038458,-2892.8584476,0.0001,2]
[342161828,1731519038532,-1852.37,0.0001,2]
[342161829,1731519038545,-516.08795265,0.0001,2]
[342161830,1731519038557,-37010.14324801,0.0001,2]
[342161831,1731519038569,-4626.05,0.0001,2]
[342161832,1731519038705,-1787.92,0.0001,2]
[342161833,1731519038717,-4887.23962416,0.0001,2]
[342161834,1731519038732,-5201.46286345,0.0001,2]
[342161980,1731519040285,-3590.13138443,0.0001,2]
[342161985,1731519040332,-2286.41945675,0.0001,2]
[342161988,1731519040343,-399.44991458,0.0001,2]
[342162003,1731519040480,-1796.322204,0.0001,2]
[342162005,1731519040493,-1846.18951014,0.0001,2]
[342162007,1731519040504,-23984.22340807,0.0001,2]
[342162235,1731519042852,-392281.79308513,0.0001,2]
[342162276,1731519043247,-2316.314,0.0001,2]
[342162280,1731519043258,-4152.7,0.0001,2]
[342162281,1731519043334,-2810.90562742,0.0001,2]
[342162282,1731519043346,-1109.17035023,0.0001,2]
[342162284,1731519043357,-1385.325,0.0001,2]
[342162286,1731519043369,-5310.09832966,0.0001,2]
[342162288,1731519043380,-4472.87725734,0.0001,2]
[342162294,1731519043432,-351.96021924,0.0001,2]
[342162296,1731519043443,-1140.44570922,0.0001,2]
[342162298,1731519043456,-16535.67007888,0.0001,2]
[342162306,1731519043521,-83445.40071871,0.0001,2]
[342162576,1731519046296,-982.59,0.0001,2]
[342162579,1731519046316,-482.25909354,0.0001,2]
[342162582,1731519046328,-1132.16427417,0.0001,2]
[342162584,1731519046341,-461.515,0.0001,2]
[342162592,1731519046409,-868062.49171435,0.0001,2]
[342162609,1731519046569,-184515.58674954,0.0001,2]
[342162612,1731519046581,-2463.20072923,0.0001,2]
[342162689,1731519047313,-0.03994277,0.0001,2]
[342163264,1731519096601,-300.0,9.999e-05,2]
[342163265,1731519096637,-431250.0,0.0001,2]
[342163266,1731519172156,3279521.66297855,0.00027,60]
[342163267,1731519199597,3300000.0,0.00025,120]
[342163268,1731519205725,-500.0,0.00026992,120]
[342163271,1731519235075,3199500.0,0.00027,120]
[342163272,1731519235100,3200000.0,0.00027,120]
[342163273,1731519264081,3400000.0,0.00025,120]
[342163274,1731519319987,4677.17791803,0.0002161,120]
[342163277,1731519549271,2115.77,8.663e-05,2]
[342163279,1731519608283,150.0,8.663e-05,2]
[342163280,1731519608466,150.0,8.663e-05,2]
[342163281,1731519608698,150.0,8.663e-05,2]
[342163282,1731519608883,150.0,8.663e-05,2]
[342163283,1731519609077,150.0,8.663e-05,2]
[342163284,1731519609294,150.0,8.663e-05,2]
[342163285,1731519609643,150.0,8.663e-05,2]
[342163286,1731519609897,150.0,8.663e-05,2]
[342163287,1731519610268,150.0,8.663e-05,2]
[342163288,1731519610456,150.0,8.663e-05,2]
[342163289,1731519611438,150.0,8.663e-05,2]
[342163290,1731519611533,150.0,8.663e-05,2]
[342163291,1731519611689,150.0,8.663e-05,2]
[342163292,1731519612003,150.0,8.663e-05,2]
[342163293,1731519612228,150.0,8.663e-05,2]
[342163294,1731519612468,150.0,8.663e-05,2]
[342163295,1731519612716,150.0,8.663e-05,2]
[342163296,1731519612933,150.0,8.663e-05,2]
[342163297,1731519613204,150.0,8.663e-05,2]
[342163298,1731519613347,150.0,8.663e-05,2]
[342163299,1731519620321,150.0,8.663e-05,2]
[342163300,1731519620534,164.70155079,8.663e-05,2]
[342163301,1731519622390,571.0,9e-05,2]
[342163302,1731519700519,562.82,0.00016658,30]
[342163303,1731519921005,-3938.127,9.8e-05,2]
[342163304,1731519921034,-189.896,9.8e-05,2]
[342163305,1731519921058,-4514.0,9.9e-05,2]
[342163306,1731519921081,-150.0,9.973e-05,2]
[342163307,1731519921106,-500.0,9.973e-05,2]
[342163308,1731519921129,-500.0,9.973e-05,2]
[342163309,1731519921151,-614.12831935,9.973e-05,2]
[342163310,1731519921173,-150.0,9.999e-05,2]
[342163311,1731519921202,-19443.84868065,0.0001,2]
[342163312,1731519935774,-382.05541652,9.973e-05,2]
[342163313,1731519935800,-19617.94458348,0.0001,2]
[342163314,1731519949419,-20000.0,0.0001,2]
[342163315,1731519959938,-20000.0,0.0001,2]
[342163316,1731520216426,156.0,0.0001802,30]
[342163317,1731520216785,156.0,0.0001802,30]
[342163318,1731520217139,156.0,0.0001802,30]
[342163319,1731520217471,156.0,0.0001802,30]
[342163320,1731520217822,156.0,0.0001802,30]
[342163321,1731520218109,156.0,0.0001802,30]
[342163322,1731520218504,156.0,0.0001802,30]
[342163327,1731520231453,-6553.0,9.801e-05,2]
[342163329,1731520231463,-336.82202086,9.999e-05,2]
[342163331,1731520231472,-150.0,9.999e-05,2]
[342163333,1731520231482,-300.0,9.999e-05,2]
[342163335,1731520231492,-519952.58627038,0.0001,2]
[342163339,1731520231524,-18402.3960048,0.0001,2]
[342163366,1731520237490,-494.08961185,0.0001,2]
[342163368,1731520237503,-309.49678836,0.0001,2]
[342163369,1731520237528,-2862.75818708,0.0001,2]
[342163370,1731520237539,-1426.106352,0.0001,2]
[342163371,1731520237550,-1378.5,0.0001,2]
[342163372,1731520237561,-12473.39907796,0.0001,2]
[342163373,1731520237575,-91997.96845936,0.0001,2]
[342163374,1731520237720,-1672499.12898907,0.0001,2]
[342163375,1731520237849,-1375.22729874,0.0001,2]
[342163376,1731520237888,-7633.70650328,0.0001,2]
[342163404,1731520239543,-541.505,0.0001,2]
[342163405,1731520239555,-285361.6488,0.0001,2]
[342163406,1731520239567,-407.10132,0.0001,2]
[342163407,1731520239579,-9182.5,0.0001,2]
[342163408,1731520239699,-3545.90018076,0.0001,2]
[342163409,1731520239855,-6124.28944798,0.0001,2]
[342163410,1731520239870,-24890.49103906,0.0001,2]
[342163411,1731520239910,-6034.88848089,0.0001,2]
[342163416,1731520242645,-7203.81137257,0.0001,2]
[342163417,1731520242656,-3491.81338061,0.0001,2]
[342163418,1731520242676,-6933.21664598,0.0001,2]
[342163419,1731520242688,-988.88665737,0.0001,2]
[342163420,1731520242699,-2000.0,0.0001,2]
[342163421,1731520242885,-71339.3143893,0.0001,2]
[342163422,1731520242897,-589966.360606,0.0001,2]
[342163423,1731520242919,-1961.86223573,0.0001,2]
[342163615,1731520246139,-722.18,0.0001,2]
[342163616,1731520246151,-829.12,0.0001,2]
[342163617,1731520246173,-1013.344594,0.0001,2]
[342163618,1731520246185,-27601.2,0.0001,2]
[342163619,1731520246581,2113.12,8.42e-05,2]
[342163621,1731520568277,156.0,0.0001802,30]
[342163622,1731520568680,156.0,0.0001802,30]
[342163623,1731520569005,156.0,0.0001802,30]
[342163624,1731520569292,156.0,0.0001802,30]
[342163625,1731520569584,156.0,0.0001802,30]
[342163626,1731520636099,534.67,0.00016658,30]
[342163627,1731520802121,156.0,0.0001802,30]
[342163628,1731520802408,156.0,0.0001802,30]
[342163629,1731520802883,156.0,0.0001802,30]
[342163630,1731520920699,1325.55,9.469e-05,2]
[342163631,1731520965092,2140.92,8.219e-05,2]
[342163632,1731520994676,916.42,9.318e-05,2]
[342163633,1731521088342,1000.0,9.347e-05,2]
[342163634,1731521098408,380.48,9.367e-05,2]
[342163635,1731521102286,200.0,9.367e-05,2]
[342163636,1731521103775,157.0,0.0001802,30]
[342163637,1731521104130,157.0,0.0001802,30]
[342163638,1731521252437,250.0,9.475e-05,2]
[342163639,1731521289303,644.33,9.4e-05,2]
[342163642,1731521356389,485.52,9.345e-05,2]
[342163646,1731521400138,507.93,0.00016658,30]
[342163647,1731521403698,157.0,0.0001802,30]
[342163648,1731521409799,1000.0,0.0002,60]
[342163649,1731521431656,-566.76,9.575e-05,2]
[342163650,1731521431666,-300.0,9.7e-05,3]
[342163651,1731521431676,-700.0,9.8e-05,3]
[342163652,1731521431685,-250.0,9.819e-05,2]
[342163653,1731521431694,-23900.0,9.829e-05,2]
[342163654,1731521431703,-160.05,9.832e-05,2]
[342163655,1731521431713,-150.0,9.899e-05,2]
[342163656,1731521431722,-7724.5864,9.9e-05,2]
[342163657,1731521431731,-1100.0,9.9e-05,3]
[342163658,1731521431740,-360.4451,9.9e-05,2]
[342163659,1731521431750,-246.5345,9.9e-05,2]
[342163660,1731521431759,-150.99,9.9e-05,2]
[342163661,1731521431768,-382.52021437,9.9e-05,5]
[342163662,1731521431777,-290.25,9.972e-05,2]
[342163663,1731521431786,-160.79232298,9.973e-05,2]
[342163664,1731521431795,-214.54651805,9.973e-05,2]
[342163665,1731521431804,-208.12301289,9.973e-05,2]
[342163666,1731521431813,-3197.553,9.973e-05,2]
[342163667,1731521431823,-184.633,9.973e-05,2]
[342163668,1731521431832,-2485.0865398,9.992e-05,2]
[342163669,1731521431841,-598.7243651,9.993e-05,2]
[342163670,1731521431851,-10184.9755034,9.993e-05,2]
[342163671,1731521431860,-259382.81780715,0.0001,2]
[342163672,1731521431878,-469.40929859,0.0001,2]
[342163673,1731521431897,-8174.78119664,0.0001,2]
[342163674,1731521431908,-922.78,0.0001,2]
[342163675,1731521431933,-700.0,0.0001,2]
[342163676,1731521431944,-6283.04540472,0.0001,2]
[342163677,1731521431967,-32270.08072224,0.0001,2]
[342163678,1731521431979,-69897.64459158,0.0001,2]
[342163679,1731521432022,-827.5,0.0001,2]
[342163684,1731521433898,250.0,9.421e-05,2]
[342163685,1731521437867,-254.154,0.0001,2]
[342163686,1731521437883,-25393.187408,0.0001,2]
[342163687,1731521437896,-1470.58994762,0.0001,2]
[342163688,1731521437908,-3544.24894972,0.0001,2]
[342163689,1731521437921,-3981.38401488,0.0001,2]
[342163690,1731521437933,-3488.62111201,0.0001,2]
[342163691,1731521438081,-824943.99267564,0.0001,2]
[342163692,1731521438091,-2067243.92521466,0.0001,2]
[342163693,1731521438101,-188152.91635845,0.0001,2]
[342163694,1731521438110,-8948.48349334,0.0001,2]
[342163695,1731521438122,-5461.00366976,0.0001,2]
[342163696,1731521438132,-32835.0,0.0001,2]
[342163697,1731521438142,-14198.4873784,0.0001,2]
[342163698,1731521438152,-809.37980563,0.0001,2]
[342163699,1731521438161,-213.6158611,0.0001,2]
[342163700,1731521438170,-3000.0,0.0001,2]
[342163701,1731521438180,-1500.0,0.0001,3]
[342163702,1731521438190,-158.82650506,0.0001,2]
[342163703,1731521438200,-189.4224851,0.0001,2]
[342163704,1731521438209,-189.4224851,0.0001,2]
[342163705,1731521438218,-301.67,0.00010082,2]
[342163706,1731521438227,-170.81,0.00010143,2]
[342163707,1731521438236,-325.00163856,0.00010252,2]
[342163708,1731521438245,-2140.92,0.00010443,2]
[342163709,1731521438255,-325.00163856,0.00010471,2]
[342163710,1731521438264,-167.0,0.00010473,2]
[342163711,1731521438275,-1000.0,0.00010515,2]
[342163712,1731521438285,-419.52,0.00010532,2]
[342163713,1731521438294,-380.48,0.00010538,2]
[342163714,1731521438304,-174.61,0.00010538,2]
[342163715,1731521438313,-508.0,0.00010574,2]
[342163716,1731521438323,-809.37980559,0.0001065,2]
[342163717,1731521438332,-180.0,0.00010889,2]
[342163718,1731521438342,-11171.11051812,0.00010899,2]
[342163719,1731521438352,-11171.11051803,0.00010899,2]
[342163720,1731521438362,-11171.11051803,0.00010899,2]
[342163721,1731521438375,-163.88824741,0.00010899,2]
[342163722,1731521438388,-163.88824736,0.00010899,2]
[342163723,1731521438398,-163.88824736,0.00010899,2]
[342163724,1731521438407,-11171.11051803,0.000109,2]
[342163725,1731521438417,-325.00163856,0.00010936,2]
[342163726,1731521438426,-500.0,0.00010958,2]
[342163727,1731521438436,-500.0,0.00010958,2]
[342163728,1731521438446,-500.0,0.00010958,2]
[342163729,1731521438455,-500.0,0.00010958,2]
[342163730,1731521438465,-500.0,0.00010958,2]
[342163731,1731521438476,-500.0,0.00010958,2]
[342163732,1731521438492,-500.0,0.00010958,2]
[342163733,1731521438501,-500.0,0.00010958,2]
[342163734,1731521438511,-500.0,0.00010958,2]
[342163735,1731521438521,-500.0,0.00010958,2]
[342163736,1731521438532,-500.0,0.00010958,2]
[342163737,1731521438542,-500.0,0.00010958,2]
[342163738,1731521438552,-441.58674056,0.00010958,2]
[342163739,1731521438562,-500.0,0.00010958,2]
[342163740,1731521438571,-500.0,0.00010958,2]
[342163741,1731521438581,-500.0,0.00010958,2]
[342163742,1731521438590,-500.0,0.00010958,2]
[342163743,1731521438599,-500.0,0.00010958,2]
[342163744,1731521438608,-504.3903642,0.00010958,2]
[342163745,1731521438618,-500.0,0.00010958,2]
[342163746,1731521438630,-157.18290822,0.00010958,2]
[342163747,1731521438639,-395.22183569,0.00010958,2]
[342163748,1731521438648,-1500.0,0.00010958,2]
[342163749,1731521438658,-390.8,0.00010959,2]
[342163750,1731521438667,-150.0,0.00010959,2]
[342163751,1731521438677,-3555.88,0.00010959,2]
[342163752,1731521438686,-250.0,0.00010959,2]
[342163753,1731521438695,-360.0,0.00011056,2]
[342163754,1731521438704,-3000.0,0.000111,2]
[342163755,1731521438713,-421.29,0.00011123,2]
[342163756,1731521438722,-163.88824736,0.00011186,2]
[342163757,1731521438731,-325.00163856,0.00011225,2]
[342163758,1731521438749,-11171.11051803,0.00011233,2]
[342163759,1731521438769,-325.00163857,0.00011339,2]
[342163760,1731521438789,-150.0,0.0001137,2]
[342163761,1731521438809,-673.939,0.00011371,2]
[342163762,1731521438832,-5931.0,0.00011371,2]
[342163763,1731521438854,-13637.0,0.00011371,2]
[342163764,1731521438876,-150.0,0.00011371,2]
[342163765,1731521438899,-535.524,0.00011371,2]
[342163766,1731521438922,-809.37980559,0.000114,2]
[342163767,1731521438932,-150.0,0.00011416,2]
[342163768,1731521438941,-390.8,0.00011507,2]
[342163769,1731521438951,-11171.11051803,0.00011567,2]
[342163770,1731521438960,-163.88824736,0.00011614,2]
[342163771,1731521438970,-1000.0,0.00011684,2]
[342163772,1731521438980,-123327.23608946,0.000117,2]
[342163773,1731521438991,-380.48,0.00011709,2]
[342163774,1731521439000,-150.0,0.00011722,2]
[342163775,1731521439010,-248.804,0.00011722,2]
[342163776,1731521439019,-282.457,0.00011722,2]
[342163777,1731521439029,-1255.0,0.00011722,2]
[342163778,1731521439039,-453.0,0.00011722,2]
[342163779,1731521439048,-1992.0,0.00011722,2]
[342163780,1731521439058,-563.0,0.00011722,2]
[342163781,1731521439069,-628.0,0.00011722,2]
[342163782,1731521439079,-559.0,0.00011722,2]
[342163783,1731521439089,-810.003,0.00011722,2]
[342163784,1731521439099,-814.0,0.00011722,2]
[342163785,1731521439109,-3745.0,0.00011722,2]
[342163786,1731521439119,-483.813,0.00011722,2]
[342163787,1731521439130,-1205.437,0.00011722,2]
[342163788,1731521439139,-150.0,0.00011734,2]
[342163789,1731521439149,-170.81,0.00011817,2]
[342163790,1731521439158,-419.52,0.00011849,2]
[342163791,1731521439168,-11171.11051803,0.000119,2]
[342163792,1731521439178,-1900.0,0.000119,4]
[342163793,1731521439187,-168.74834319,0.000119,2]
[342163794,1731521439196,-1450.0,0.00012,2]
[342163795,1731521439206,-153.39,0.00012033,2]
[342163796,1731521439215,-163.88824736,0.00012043,2]
[342163797,1731521439224,-150.0,0.00012051,2]
[342163798,1731521439233,-390.8,0.00012055,2]
[342163799,1731521439244,-809.37980559,0.0001215,2]
[342163800,1731521439254,-11171.11051803,0.00012233,2]
[342163801,1731521439263,-158271.7561786,0.0001228,2]
[342163802,1731521439273,-3000.0,0.0001235,2]
[342163803,1731521439283,-150.0,0.00012368,2]
[342163804,1731521439292,-1541.152618,0.000124,2]
[342163805,1731521439301,-163.88824736,0.00012471,2]
[342163806,1731521439311,-300.0,0.000125,4]
[342163807,1731521439320,-2620.03021845,0.00012547,2]
[342163808,1731521439329,-11171.11051803,0.00012567,2]
[342163809,1731521439338,-300.0,0.000126,4]
[342163810,1731521439347,-390.8,0.00012603,2]
[342163811,1731521439356,-2205.40244047,0.00012607,2]
[342163812,1731521439366,-2205.40244047,0.00012607,2]
[342163813,1731521439380,-3891.0,0.0001266,2]
[342163814,1731521439389,-2140.92,0.00012667,2]
[342163815,1731521439398,-150.0,0.00012685,2]
[342163816,1731521439407,-297467.13543825,0.0001269,3]
[342163817,1731521439416,-151.0,0.0001269,2]
[342163818,1731521439426,-151.0,0.0001269,2]
[342163819,1731521439435,-151.0,0.0001269,2]
[342163820,1731521439445,-151.0,0.0001269,2]
[342163821,1731521439454,-151.0,0.0001269,2]
[342163822,1731521439464,-230.704315,0.0001269,2]
[342163823,1731521439474,-287.58235,0.0001269,2]
[342163824,1731521439486,-151.0,0.0001269,2]
[342163825,1731521439496,-151.0,0.0001269,2]
[342163826,1731521439505,-151.0,0.0001269,2]
[342163827,1731521439515,-151.182255,0.0001269,2]
[342163828,1731521439524,-151.0,0.0001269,2]
[342163829,1731521439535,-752.907686,0.0001269,2]
[342163830,1731521439544,-752.907686,0.0001269,2]
[342163831,1731521439554,-151.0,0.0001269,2]
[342163832,1731521439565,-151.0,0.0001269,2]
[342163833,1731521439574,-154.655355,0.0001269,2]
[342163834,1731521439584,-151.0,0.0001269,2]
[342163835,1731521439594,-151.0,0.0001269,2]
[342163837,1731521439603,-151.0,0.0001269,2]
[342163838,1731521439613,-177.963301,0.0001269,2]
[342163839,1731521439626,-177.963301,0.0001269,2]
[342163840,1731521439636,-1059.928398,0.0001269,2]
[342163841,1731521439646,-1059.928398,0.0001269,2]
[342163842,1731521439655,-151.0,0.0001269,2]
[342163843,1731521439665,-151.0,0.0001269,2]
[342163844,1731521439674,-473.057445,0.0001269,2]
[342163845,1731521439684,-473.057445,0.0001269,2]
[342163846,1731521439693,-151.0,0.0001269,2]
[342163847,1731521439703,-151.0,0.0001269,2]
[342163848,1731521439712,-151.0,0.0001269,2]
[342163849,1731521439721,-151.0,0.0001269,2]
[342163850,1731521439730,-893.972005,0.0001269,2]
[342163851,1731521439740,-893.972005,0.0001269,2]
[342163852,1731521439750,-2997.039769,0.0001269,2]
[342163853,1731521439759,-2997.039769,0.0001269,2]
[342163854,1731521439768,-215.100011,0.0001269,2]
[342163855,1731521439778,-215.100011,0.0001269,2]
[342163856,1731521439788,-151.0,0.0001269,2]
[342163857,1731521439797,-151.0,0.0001269,2]
[342163858,1731521439806,-151.0,0.0001269,2]
[342163859,1731521439815,-151.0,0.0001269,2]
[342163860,1731521439824,-541.21024,0.0001269,2]
[342163861,1731521439834,-541.21024,0.0001269,2]
[342163862,1731521439843,-151.0,0.0001269,2]
[342163863,1731521439852,-151.0,0.0001269,2]
[342163864,1731521439862,-151.0,0.0001269,2]
[342163865,1731521439872,-267.73618,0.0001269,2]
[342163866,1731521439882,-151.0,0.0001269,2]
[342163867,1731521439897,-267.73618,0.0001269,2]
[342163868,1731521439919,-151.0,0.0001269,2]
[342163869,1731521439940,-151.0,0.0001269,2]
[342163870,1731521439964,-151.0,0.0001269,2]
[342163871,1731521439985,-2204.223742,0.0001269,2]
[342163872,1731521440008,-424.843563,0.0001269,2]
[342163873,1731521440030,-2204.223742,0.0001269,2]
[342163874,1731521440051,-424.843563,0.0001269,2]
[342163875,1731521440073,-151.929006,0.0001269,2]
[342163876,1731521440095,-214.369471,0.0001269,2]
[342163877,1731521440115,-151.0,0.0001269,2]
[342163879,1731521440140,-214.369471,0.0001269,2]
[342163880,1731521440161,-180.79489,0.0001269,2]
[342163881,1731521440185,-180.79489,0.0001269,2]
[342163882,1731521440208,-151.0,0.0001269,2]
[342163883,1731521440239,-157.116972,0.0001269,2]
[342163884,1731521440263,-157.116972,0.0001269,2]
[342163885,1731521440290,-155.697815,0.0001269,2]
[342163886,1731521440306,-380.720009,0.0001269,2]
[342163887,1731521440316,-380.720009,0.0001269,2]
[342163888,1731521440325,-151.0,0.0001269,2]
[342163889,1731521440335,-451.67644,0.0001269,2]
[342163890,1731521440344,-451.67644,0.0001269,2]
[342163891,1731521440353,-358.028382,0.0001269,2]
[342163892,1731521440363,-358.028382,0.0001269,2]
[342163893,1731521440374,-151.0,0.0001269,2]
[342163894,1731521440385,-2658.825331,0.0001269,2]
[342163895,1731521440394,-2658.825331,0.0001269,2]
[342163896,1731521440403,-446.516779,0.0001269,2]
[342163897,1731521440412,-446.516779,0.0001269,2]
[342163898,1731521440421,-10000.0,0.0001269,2]
[342163899,1731521440431,-10000.0,0.0001269,2]
[342163900,1731521440440,-10000.0,0.0001269,2]
[342163901,1731521440449,-10000.0,0.0001269,2]
[342163902,1731521440458,-153.099865,0.0001269,2]
[342163903,1731521440469,-151.0,0.0001269,2]
[342163904,1731521440478,-151.0,0.0001269,2]
[342163905,1731521440492,-151.0,0.0001269,2]
[342163906,1731521440502,-753.675377,0.0001269,2]
[342163907,1731521440511,-515.099381,0.0001269,2]
[342163908,1731521440520,-753.675377,0.0001269,2]
[342163909,1731521440530,-515.099381,0.0001269,2]
[342163910,1731521440539,-300.0,0.000127,4]
[342163911,1731521440548,-300.0,0.000128,4]
[342163912,1731521440558,-1000.0,0.00012852,2]